[Event "*** Titled Tuesday Blitz"]
[Site "Chess.com"]
[Date "2020.12.01"]
[Round "11"]
[White "MatyChess1"]
[Black "Nikolakis2014"]
[Result "1-0"]
[WhiteElo "2582"]
[BlackElo "2702"]
[TimeControl "180+1"]
[EndTime "12:05:40 PST"]
[Termination "MatyChess1 won by resignation"]

1. e4 {[%clk 0:03:00.9]} 1... c6 {[%clk 0:02:59.6]} 2. Nc3 {[%clk 0:03:00.2]}
2... d5 {[%clk 0:02:59]} 3. Nf3 {[%clk 0:03:01.1]} 3... Bg4 {[%clk 0:02:56.9]}
4. h3 {[%clk 0:03:01.2]} 4... Bxf3 {[%clk 0:02:57]} 5. Qxf3 {[%clk 0:03:02.1]}
5... e6 {[%clk 0:02:57.4]} 6. Be2 {[%clk 0:03:01.6]} 6... Nd7 {[%clk 0:02:57.3]}
7. O-O {[%clk 0:03:02.1]} 7... g6 {[%clk 0:02:57.6]} 8. d4 {[%clk 0:03:02.1]}
8... Bg7 {[%clk 0:02:57.7]} 9. Rd1 {[%clk 0:03:02.8]} 9... Ne7 {[%clk
0:02:57.7]} 10. Bf4 {[%clk 0:03:02.2]} 10... O-O {[%clk 0:02:54.3]} 11. a4
{[%clk 0:03:02.7]} 11... a5 {[%clk 0:02:52.2]} 12. Bd6 {[%clk 0:02:59.7]} 12...
Re8 {[%clk 0:02:51.9]} 13. g4 {[%clk 0:02:49.3]} 13... Nc8 {[%clk 0:02:45.9]}
14. Bg3 {[%clk 0:02:40]} 14... Qb6 {[%clk 0:02:44.6]} 15. e5 {[%clk 0:02:05.5]}
15... Rf8 {[%clk 0:02:42.1]} 16. Qe3 {[%clk 0:01:57.5]} 16... Ne7 {[%clk
0:02:38.6]} 17. f4 {[%clk 0:01:38.1]} 17... Rac8 {[%clk 0:02:36.8]} 18. Bh4
{[%clk 0:01:36.8]} 18... Rfe8 {[%clk 0:02:32.2]} 19. Bf2 {[%clk 0:00:53.5]}
19... Nb8 {[%clk 0:02:29.1]} 20. Bd3 {[%clk 0:00:48.9]} 20... Na6 {[%clk
0:02:27.5]} 21. f5 {[%clk 0:00:38.6]} 21... exf5 {[%clk 0:02:05.5]} 22. gxf5
{[%clk 0:00:38.1]} 22... f6 {[%clk 0:02:05.5]} 23. fxg6 {[%clk 0:00:35.4]} 23...
Nxg6 {[%clk 0:02:02.3]} 24. e6 {[%clk 0:00:27.6]} 24... Nb4 {[%clk 0:01:48.7]}
25. Bf5 {[%clk 0:00:27.7]} 25... Qc7 {[%clk 0:01:47.6]} 26. Kh1 {[%clk 0:00:26]}
26... Qf4 {[%clk 0:01:43.3]} 27. Qxf4 {[%clk 0:00:20.2]} 27... Nxf4 {[%clk
0:01:43.4]} 28. Rg1 {[%clk 0:00:17.7]} 28... Kh8 {[%clk 0:01:40.7]} 29. Rae1
{[%clk 0:00:15.5]} 29... Re7 {[%clk 0:01:37]} 30. Rg4 {[%clk 0:00:14.8]} 30...
Ng6 {[%clk 0:01:30.2]} 31. Bg3 {[%clk 0:00:14.1]} 31... Rd8 {[%clk 0:01:25.4]}
32. h4 {[%clk 0:00:13.2]} 32... Bh6 {[%clk 0:01:11.8]} 33. h5 {[%clk 0:00:12.9]}
33... Nf8 {[%clk 0:01:11.8]} 34. Ne2 {[%clk 0:00:13.3]} 34... Rg7 {[%clk
0:01:08.3]} 35. Ng1 {[%clk 0:00:12.6]} 35... Re8 {[%clk 0:01:06]} 36. Rxg7
{[%clk 0:00:12.4]} 36... Kxg7 {[%clk 0:01:05.3]} 37. c3 {[%clk 0:00:13.3]} 37...
Na6 {[%clk 0:01:04.1]} 38. Bd6 {[%clk 0:00:13.5]} 38... Nb8 {[%clk 0:00:58.6]}
39. Nh3 {[%clk 0:00:13.4]} 39... Bg5 {[%clk 0:00:49.1]} 40. Kg2 {[%clk
0:00:12.7]} 40... h6 {[%clk 0:00:48.4]} 41. Nf4 {[%clk 0:00:13.1]} 41... Bxf4
{[%clk 0:00:45.7]} 42. Bxf4 {[%clk 0:00:14]} 42... Nh7 {[%clk 0:00:46.1]} 43. e7
{[%clk 0:00:11.9]} 43... Ng5 {[%clk 0:00:43.2]} 44. Bxb8 {[%clk 0:00:11.3]}
44... Rxb8 {[%clk 0:00:42.7]} 45. e8=Q {[%clk 0:00:11.1]} 45... Rxe8 {[%clk
0:00:42.7]} 46. Rxe8 {[%clk 0:00:12]} 46... Kf7 {[%clk 0:00:42.9]} 47. Rb8
{[%clk 0:00:12.3]} 47... Ne4 {[%clk 0:00:43.2]} 48. Rxb7+ {[%clk 0:00:12.3]}
48... Ke8 {[%clk 0:00:44.1]} 49. Bxe4 {[%clk 0:00:12.8]} 49... dxe4 {[%clk
0:00:44.2]} 50. Rh7 {[%clk 0:00:13.4]} 50... f5 {[%clk 0:00:45]} 51. Kf2 {[%clk
0:00:14.1]} 51... e3+ {[%clk 0:00:45.7]} 52. Kxe3 {[%clk 0:00:14.1]} 1-0

[Event "*** Titled Tuesday Blitz"]
[Site "Chess.com"]
[Date "2020.12.01"]
[Round "11"]
[White "Mikasinski"]
[Black "coco_crc"]
[Result "1-0"]
[WhiteElo "2293"]
[BlackElo "2193"]
[TimeControl "180+1"]
[EndTime "12:05:42 PST"]
[Termination "Mikasinski won by resignation"]

1. e4 {[%clk 0:03:00.9]} 1... e5 {[%clk 0:02:57.1]} 2. Nf3 {[%clk 0:03:00.9]}
2... Nc6 {[%clk 0:02:57]} 3. Nc3 {[%clk 0:03:00.8]} 3... Nf6 {[%clk 0:02:56]} 4.
Bb5 {[%clk 0:03:01.5]} 4... a6 {[%clk 0:02:53.7]} 5. Bxc6 {[%clk 0:03:00.2]}
5... dxc6 {[%clk 0:02:49.4]} 6. Nxe5 {[%clk 0:03:00.9]} 6... Nxe4 {[%clk
0:02:44]} 7. Nxe4 {[%clk 0:03:00.3]} 7... Qd4 {[%clk 0:02:44]} 8. O-O {[%clk
0:03:00.1]} 8... Qxe5 {[%clk 0:02:43.2]} 9. d4 {[%clk 0:03:00.7]} 9... Qf5
{[%clk 0:02:36.7]} 10. Re1 {[%clk 0:03:00.2]} 10... Be6 {[%clk 0:02:27.1]} 11.
c3 {[%clk 0:02:56.8]} 11... Be7 {[%clk 0:02:24]} 12. Ng3 {[%clk 0:02:51.1]}
12... Qg6 {[%clk 0:02:21.7]} 13. Bf4 {[%clk 0:02:50.1]} 13... O-O-O {[%clk
0:02:18.2]} 14. Qe2 {[%clk 0:02:45.1]} 14... h5 {[%clk 0:02:13.1]} 15. Qe4
{[%clk 0:02:39.5]} 15... Qxe4 {[%clk 0:01:55.1]} 16. Nxe4 {[%clk 0:02:37.3]}
16... Rhe8 {[%clk 0:01:54.4]} 17. g3 {[%clk 0:02:35.2]} 17... h4 {[%clk
0:01:51.3]} 18. Ng5 {[%clk 0:01:56.2]} 18... hxg3 {[%clk 0:01:41]} 19. Nxe6
{[%clk 0:01:54]} 19... gxf2+ {[%clk 0:01:37.7]} 20. Kxf2 {[%clk 0:01:54.2]}
20... Bh4+ {[%clk 0:01:28.5]} 21. Kf3 {[%clk 0:01:43]} 21... Bxe1 {[%clk
0:01:07.4]} 22. Nxd8 {[%clk 0:01:42.9]} 22... Kxd8 {[%clk 0:01:08.3]} 23. Be5
{[%clk 0:01:37.6]} 23... f6 {[%clk 0:00:34.9]} 24. Rxe1 {[%clk 0:01:35]} 24...
fxe5 {[%clk 0:00:34.9]} 25. Rxe5 {[%clk 0:01:33]} 25... Rf8+ {[%clk 0:00:22.8]}
26. Kg3 {[%clk 0:01:32.8]} 26... Kd7 {[%clk 0:00:20.2]} 27. h4 {[%clk
0:01:30.3]} 27... Rf6 {[%clk 0:00:19.6]} 28. Rg5 {[%clk 0:01:30.4]} 28... g6
{[%clk 0:00:18.3]} 29. c4 {[%clk 0:01:22.6]} 29... Ke7 {[%clk 0:00:18.2]} 30.
Rg4 {[%clk 0:01:08.7]} 30... Rd6 {[%clk 0:00:14.4]} 31. Re4+ {[%clk 0:01:06.5]}
31... Kf7 {[%clk 0:00:14.1]} 32. Kg4 {[%clk 0:01:06]} 32... b6 {[%clk
0:00:13.5]} 33. b4 {[%clk 0:01:02.6]} 33... Rd7 {[%clk 0:00:09.7]} 34. a4 {[%clk
0:01:00.2]} 34... Rd6 {[%clk 0:00:08.9]} 35. Kg5 {[%clk 0:00:59.8]} 35... c5
{[%clk 0:00:08.9]} 36. dxc5 {[%clk 0:00:56.7]} 36... bxc5 {[%clk 0:00:09.8]} 37.
b5 {[%clk 0:00:57.3]} 37... axb5 {[%clk 0:00:08.4]} 38. cxb5 {[%clk 0:00:57.4]}
38... Rd1 {[%clk 0:00:05.3]} 39. Rf4+ {[%clk 0:00:52.6]} 39... Kg7 {[%clk
0:00:04.9]} 40. Rc4 {[%clk 0:00:51.5]} 40... Rg1+ {[%clk 0:00:04.8]} 41. Kf4
{[%clk 0:00:50.9]} 41... Ra1 {[%clk 0:00:05.3]} 42. Ke5 {[%clk 0:00:49.7]} 42...
Re1+ {[%clk 0:00:01.8]} 43. Kd5 {[%clk 0:00:49.8]} 43... Rh1 {[%clk 0:00:01.4]}
44. Kxc5 {[%clk 0:00:49.5]} 44... Ra1 {[%clk 0:00:01.8]} 45. Kc6 {[%clk
0:00:49.6]} 45... Rh1 {[%clk 0:00:02.5]} 46. Kxc7 {[%clk 0:00:50]} 46... Ra1
{[%clk 0:00:02.6]} 47. b6 {[%clk 0:00:50.3]} 47... Kf6 {[%clk 0:00:03.5]} 48. b7
{[%clk 0:00:50.5]} 1-0

[Event "*** Titled Tuesday Blitz"]
[Site "Chess.com"]
[Date "2020.12.01"]
[Round "11"]
[White "ArjunErigaisi2003"]
[Black "DrVelja"]
[Result "1-0"]
[WhiteElo "2936"]
[BlackElo "2811"]
[TimeControl "180+1"]
[EndTime "12:05:43 PST"]
[Termination "ArjunErigaisi2003 won by resignation"]

1. d4 {[%clk 0:03:00.9]} 1... Nf6 {[%clk 0:03:00]} 2. c4 {[%clk 0:03:01]} 2...
g6 {[%clk 0:03:00.5]} 3. Nc3 {[%clk 0:03:01.5]} 3... d5 {[%clk 0:03:01.2]} 4.
Nf3 {[%clk 0:03:00]} 4... Bg7 {[%clk 0:03:01.2]} 5. h4 {[%clk 0:03:00.6]} 5...
dxc4 {[%clk 0:03:01]} 6. e4 {[%clk 0:02:59.6]} 6... c5 {[%clk 0:03:00.7]} 7. d5
{[%clk 0:02:58.3]} 7... b5 {[%clk 0:03:01.2]} 8. h5 {[%clk 0:02:28.4]} 8... O-O
{[%clk 0:03:00.8]} 9. Nxb5 {[%clk 0:01:51.4]} 9... Qa5+ {[%clk 0:02:51.2]} 10.
Nc3 {[%clk 0:01:51.8]} 10... Nxe4 {[%clk 0:02:50.5]} 11. Bd2 {[%clk 0:01:52.4]}
11... Nxd2 {[%clk 0:02:35.9]} 12. Qxd2 {[%clk 0:01:53.3]} 12... Nd7 {[%clk
0:02:15.6]} 13. hxg6 {[%clk 0:01:42.8]} 13... hxg6 {[%clk 0:02:14.9]} 14. Rc1
{[%clk 0:01:34.3]} 14... Rb8 {[%clk 0:02:09.9]} 15. Bxc4 {[%clk 0:01:29.9]}
15... Ba6 {[%clk 0:02:10]} 16. Be2 {[%clk 0:01:22]} 16... Nf6 {[%clk 0:01:13.3]}
17. Ne5 {[%clk 0:01:02.9]} 17... Bxe2 {[%clk 0:00:41.9]} 18. Qxe2 {[%clk
0:00:47.3]} 18... Nxd5 {[%clk 0:00:39]} 19. Nc6 {[%clk 0:00:45.1]} 19... Bxc3+
{[%clk 0:00:28.3]} 20. bxc3 {[%clk 0:00:39.6]} 20... Qxc3+ {[%clk 0:00:22.1]}
21. Rxc3 {[%clk 0:00:36.5]} 21... Rb1+ {[%clk 0:00:22.6]} 22. Kd2 {[%clk
0:00:35.4]} 22... Rxh1 {[%clk 0:00:13.6]} 23. Nxe7+ {[%clk 0:00:35.6]} 23...
Nxe7 {[%clk 0:00:13.9]} 24. Qxe7 {[%clk 0:00:36.5]} 24... Rb8 {[%clk 0:00:11.5]}
25. Qxa7 {[%clk 0:00:33.3]} 25... Rhb1 {[%clk 0:00:09.7]} 26. Rxc5 {[%clk
0:00:30.8]} 26... R1b7 {[%clk 0:00:07.7]} 27. Qa6 {[%clk 0:00:27.8]} 27... Rd7+
{[%clk 0:00:04.2]} 28. Kc3 {[%clk 0:00:26.1]} 28... Re8 {[%clk 0:00:05.1]} 29.
Rc8 {[%clk 0:00:25.5]} 29... Re7 {[%clk 0:00:04.6]} 30. Rxe8+ {[%clk 0:00:25.3]}
30... Rxe8 {[%clk 0:00:05.5]} 31. Qb7 {[%clk 0:00:25.6]} 31... Re2 {[%clk
0:00:05.2]} 32. a4 {[%clk 0:00:25.2]} 32... Ra2 {[%clk 0:00:05.4]} 33. Qa8+
{[%clk 0:00:21.6]} 33... Kg7 {[%clk 0:00:05.2]} 34. a5 {[%clk 0:00:22.5]} 34...
Rxf2 {[%clk 0:00:05.8]} 35. a6 {[%clk 0:00:22.9]} 35... Rxg2 {[%clk 0:00:02.7]}
36. Qxg2 {[%clk 0:00:22.5]} 1-0

[Event "*** Titled Tuesday Blitz"]
[Site "Chess.com"]
[Date "2020.12.01"]
[Round "11"]
[White "Mr_Sinigami"]
[Black "Sam_ChessMood"]
[Result "1/2-1/2"]
[WhiteElo "2591"]
[BlackElo "2806"]
[TimeControl "180+1"]
[EndTime "12:05:43 PST"]
[Termination "Game drawn by repetition"]

1. d4 {[%clk 0:02:59.4]} 1... Nf6 {[%clk 0:02:58.4]} 2. Nf3 {[%clk 0:02:58.7]}
2... d5 {[%clk 0:02:58.3]} 3. Bf4 {[%clk 0:02:58]} 3... c5 {[%clk 0:02:57.3]} 4.
e3 {[%clk 0:02:57.8]} 4... Nc6 {[%clk 0:02:57.8]} 5. c3 {[%clk 0:02:57.8]} 5...
Qb6 {[%clk 0:02:53.4]} 6. Qc1 {[%clk 0:02:55.5]} 6... Bf5 {[%clk 0:02:49.5]} 7.
Nbd2 {[%clk 0:02:54.7]} 7... e6 {[%clk 0:02:49.7]} 8. Nb3 {[%clk 0:02:52.4]}
8... c4 {[%clk 0:02:39.7]} 9. Nbd2 {[%clk 0:02:51.9]} 9... Qd8 {[%clk
0:02:35.4]} 10. Be2 {[%clk 0:02:36.8]} 10... Bd6 {[%clk 0:02:34.8]} 11. Bg3
{[%clk 0:02:27]} 11... O-O {[%clk 0:02:34.1]} 12. O-O {[%clk 0:02:26.6]} 12...
Bxg3 {[%clk 0:02:34]} 13. hxg3 {[%clk 0:02:26.3]} 13... b5 {[%clk 0:02:34.3]}
14. Bd1 {[%clk 0:02:25.8]} 14... a5 {[%clk 0:02:29.3]} 15. Bc2 {[%clk
0:02:25.5]} 15... b4 {[%clk 0:02:29.2]} 16. Re1 {[%clk 0:02:24.3]} 16... a4
{[%clk 0:02:16.5]} 17. a3 {[%clk 0:02:19.1]} 17... bxc3 {[%clk 0:02:15.7]} 18.
bxc3 {[%clk 0:02:19]} 18... Qa5 {[%clk 0:02:09.4]} 19. e4 {[%clk 0:02:14.7]}
19... Bg6 {[%clk 0:02:09.6]} 20. exd5 {[%clk 0:02:01.2]} 20... exd5 {[%clk
0:02:08.1]} 21. Bxg6 {[%clk 0:02:00.2]} 21... hxg6 {[%clk 0:02:07.7]} 22. Ne5
{[%clk 0:01:57.5]} 22... Qa6 {[%clk 0:02:03.3]} 23. Qc2 {[%clk 0:01:45.3]} 23...
Rab8 {[%clk 0:01:38.6]} 24. Rab1 {[%clk 0:01:41]} 24... Rfc8 {[%clk 0:01:30.1]}
25. Rxb8 {[%clk 0:01:20.6]} 25... Rxb8 {[%clk 0:01:29.6]} 26. Rb1 {[%clk
0:01:21.1]} 26... Rxb1+ {[%clk 0:01:26.8]} 27. Qxb1 {[%clk 0:01:18.8]} 27... g5
{[%clk 0:00:54.3]} 28. f3 {[%clk 0:01:15.5]} 28... Ne7 {[%clk 0:00:32]} 29. Qb8+
{[%clk 0:01:08.8]} 29... Qc8 {[%clk 0:00:32.1]} 30. Qb4 {[%clk 0:01:08.3]} 30...
Qe8 {[%clk 0:00:31.7]} 31. Nf1 {[%clk 0:01:01]} 31... Ng6 {[%clk 0:00:30.5]} 32.
Nxg6 {[%clk 0:00:56.5]} 32... fxg6 {[%clk 0:00:31.4]} 33. Kf2 {[%clk 0:00:57]}
33... g4 {[%clk 0:00:30.4]} 34. Ne3 {[%clk 0:00:56]} 34... gxf3 {[%clk
0:00:30.5]} 35. gxf3 {[%clk 0:00:55.8]} 35... g5 {[%clk 0:00:27.8]} 36. g4
{[%clk 0:00:53.7]} 36... Qd7 {[%clk 0:00:21.6]} 37. Qb8+ {[%clk 0:00:50.2]}
37... Kf7 {[%clk 0:00:20.6]} 38. Qe5 {[%clk 0:00:47.3]} 38... Kg6 {[%clk
0:00:19.2]} 39. Kg3 {[%clk 0:00:43.5]} 39... Kh6 {[%clk 0:00:14.5]} 40. Nf5+
{[%clk 0:00:41.9]} 40... Kg6 {[%clk 0:00:14.5]} 41. Ne7+ {[%clk 0:00:38.5]}
41... Kf7 {[%clk 0:00:14.6]} 42. Nf5 {[%clk 0:00:37.7]} 42... Kg6 {[%clk
0:00:14.2]} 43. Ne3 {[%clk 0:00:37.3]} 43... Kh6 {[%clk 0:00:13.6]} 44. Kh3
{[%clk 0:00:35]} 44... Kg6 {[%clk 0:00:12.7]} 45. Kg3 {[%clk 0:00:32.7]} 1/2-1/2

[Event "*** Titled Tuesday Blitz"]
[Site "Chess.com"]
[Date "2020.12.01"]
[Round "11"]
[White "Sviridov_Valery"]
[Black "Rsnr"]
[Result "1-0"]
[WhiteElo "2926"]
[BlackElo "2798"]
[TimeControl "180+1"]
[EndTime "12:05:46 PST"]
[Termination "Sviridov_Valery won by resignation"]

1. Nf3 {[%clk 0:03:00.9]} 1... d5 {[%clk 0:03:00.1]} 2. g3 {[%clk 0:03:01.1]}
2... c6 {[%clk 0:03:00.3]} 3. Bg2 {[%clk 0:03:01.4]} 3... Bf5 {[%clk 0:02:59.6]}
4. O-O {[%clk 0:03:01.6]} 4... e6 {[%clk 0:03:00.1]} 5. c4 {[%clk 0:03:02.2]}
5... Nf6 {[%clk 0:02:58.6]} 6. cxd5 {[%clk 0:03:02.7]} 6... exd5 {[%clk
0:02:58.9]} 7. d3 {[%clk 0:03:03.2]} 7... Nbd7 {[%clk 0:02:56.9]} 8. Nc3 {[%clk
0:03:03.2]} 8... Bc5 {[%clk 0:02:54.4]} 9. Qb3 {[%clk 0:03:02.1]} 9... Bb6
{[%clk 0:02:50.5]} 10. e4 {[%clk 0:03:01.5]} 10... dxe4 {[%clk 0:02:44.5]} 11.
dxe4 {[%clk 0:03:02.4]} 11... Be6 {[%clk 0:02:45]} 12. Qc2 {[%clk 0:03:02.1]}
12... h6 {[%clk 0:02:41.7]} 13. h3 {[%clk 0:02:56.9]} 13... O-O {[%clk
0:02:41.7]} 14. Rd1 {[%clk 0:02:56.9]} 14... Qe7 {[%clk 0:02:38.5]} 15. Nd4
{[%clk 0:02:55.7]} 15... Rad8 {[%clk 0:02:27.6]} 16. Be3 {[%clk 0:02:45.9]}
16... Rfe8 {[%clk 0:02:27.4]} 17. Rd2 {[%clk 0:02:42.3]} 17... Ne5 {[%clk
0:01:23.4]} 18. b3 {[%clk 0:02:41.4]} 18... Bc8 {[%clk 0:01:23.9]} 19. Rad1
{[%clk 0:02:39.8]} 19... c5 {[%clk 0:01:23.9]} 20. Ndb5 {[%clk 0:02:17.9]} 20...
Rxd2 {[%clk 0:01:12.5]} 21. Rxd2 {[%clk 0:02:18.8]} 21... Rd8 {[%clk 0:01:07.6]}
22. f4 {[%clk 0:02:09.5]} 22... Nc6 {[%clk 0:00:56]} 23. e5 {[%clk 0:02:09.2]}
23... Nb4 {[%clk 0:00:36.5]} 24. Qd1 {[%clk 0:02:05.9]} 24... Rxd2 {[%clk
0:00:34.1]} 25. Qxd2 {[%clk 0:02:06.8]} 25... Ne8 {[%clk 0:00:27.1]} 26. a3
{[%clk 0:01:51.3]} 26... Nc6 {[%clk 0:00:27.5]} 27. Nd5 {[%clk 0:01:51.1]} 27...
Qd8 {[%clk 0:00:27.6]} 28. g4 {[%clk 0:01:38.2]} 28... Be6 {[%clk 0:00:22.6]}
29. Nbc3 {[%clk 0:01:34]} 29... Nd4 {[%clk 0:00:09.9]} 30. Nxb6 {[%clk
0:01:33.8]} 30... Qxb6 {[%clk 0:00:08.7]} 31. b4 {[%clk 0:01:34.3]} 31... Nb3
{[%clk 0:00:04.7]} 32. Qd1 {[%clk 0:01:19.6]} 32... Qc7 {[%clk 0:00:04.9]} 33.
Nd5 {[%clk 0:01:18.2]} 33... Bxd5 {[%clk 0:00:04.7]} 34. Qxd5 {[%clk 0:01:19.1]}
34... c4 {[%clk 0:00:03.2]} 35. Qxb7 {[%clk 0:01:18.1]} 35... Qxb7 {[%clk
0:00:04.1]} 36. Bxb7 {[%clk 0:01:18.6]} 36... c3 {[%clk 0:00:04.9]} 37. Be4
{[%clk 0:01:19.2]} 37... Nc7 {[%clk 0:00:04.8]} 38. a4 {[%clk 0:01:09.3]} 38...
Na6 {[%clk 0:00:03.5]} 39. b5 {[%clk 0:01:04]} 39... Nbc5 {[%clk 0:00:01.8]} 40.
Bc2 {[%clk 0:00:55]} 40... Nb4 {[%clk 0:00:01.7]} 41. Bxc5 {[%clk 0:00:54.9]}
41... Nxc2 {[%clk 0:00:02.5]} 42. Bxa7 {[%clk 0:00:53.8]} 42... Kf8 {[%clk
0:00:03.4]} 43. Bc5+ {[%clk 0:00:51.7]} 43... Ke8 {[%clk 0:00:03.5]} 44. Kf1
{[%clk 0:00:52.4]} 44... Kd7 {[%clk 0:00:03.7]} 45. Ke2 {[%clk 0:00:52.7]} 45...
Na1 {[%clk 0:00:04.3]} 46. Kd3 {[%clk 0:00:52.4]} 46... c2 {[%clk 0:00:05.2]}
47. Be3 {[%clk 0:00:51.7]} 47... f6 {[%clk 0:00:04.1]} 48. exf6 {[%clk
0:00:51.3]} 48... gxf6 {[%clk 0:00:05]} 49. f5 {[%clk 0:00:52.2]} 49... Kd6
{[%clk 0:00:04.3]} 50. Bxh6 {[%clk 0:00:52.1]} 50... Kc5 {[%clk 0:00:04.7]} 51.
Be3+ {[%clk 0:00:51]} 51... Kb4 {[%clk 0:00:05.2]} 52. b6 {[%clk 0:00:51.9]} 1-0

[Event "*** Titled Tuesday Blitz"]
[Site "Chess.com"]
[Date "2020.12.01"]
[Round "11"]
[White "carloseduar100"]
[Black "Praslov"]
[Result "1-0"]
[WhiteElo "2094"]
[BlackElo "2383"]
[TimeControl "180+1"]
[EndTime "12:05:46 PST"]
[Termination "carloseduar100 won by checkmate"]

1. e4 {[%clk 0:03:00.9]} 1... c6 {[%clk 0:02:59.1]} 2. d4 {[%clk 0:02:56.3]}
2... d5 {[%clk 0:02:59.5]} 3. exd5 {[%clk 0:02:56.5]} 3... cxd5 {[%clk
0:02:59.4]} 4. Nc3 {[%clk 0:02:57.2]} 4... Nf6 {[%clk 0:02:58.1]} 5. Bf4 {[%clk
0:02:56.8]} 5... Nc6 {[%clk 0:02:56.9]} 6. Nf3 {[%clk 0:02:57]} 6... Bg4 {[%clk
0:02:55.5]} 7. Be2 {[%clk 0:02:57.2]} 7... e6 {[%clk 0:02:55.3]} 8. O-O {[%clk
0:02:57.3]} 8... Bd6 {[%clk 0:02:49.6]} 9. Bg3 {[%clk 0:02:55.2]} 9... O-O
{[%clk 0:02:46.6]} 10. Ne5 {[%clk 0:02:49.8]} 10... Bf5 {[%clk 0:02:33]} 11. Re1
{[%clk 0:02:42.3]} 11... Rc8 {[%clk 0:02:30.4]} 12. a3 {[%clk 0:02:41.7]} 12...
Bxe5 {[%clk 0:02:12.9]} 13. dxe5 {[%clk 0:02:37.7]} 13... Nd7 {[%clk 0:02:12.7]}
14. Bd3 {[%clk 0:02:30.1]} 14... Bxd3 {[%clk 0:02:03.1]} 15. cxd3 {[%clk
0:02:31]} 15... Nd4 {[%clk 0:01:50.5]} 16. Kh1 {[%clk 0:02:26]} 16... Nf5 {[%clk
0:01:47]} 17. Bf4 {[%clk 0:02:22.3]} 17... Nc5 {[%clk 0:01:41.1]} 18. d4 {[%clk
0:02:20.2]} 18... Nd7 {[%clk 0:01:35.7]} 19. Ne2 {[%clk 0:02:01]} 19... Qb6
{[%clk 0:01:32.7]} 20. Qd2 {[%clk 0:01:55.8]} 20... Rc4 {[%clk 0:01:30.9]} 21.
Rad1 {[%clk 0:01:52]} 21... Rfc8 {[%clk 0:01:30.1]} 22. b4 {[%clk 0:01:42.4]}
22... a5 {[%clk 0:01:27.7]} 23. bxa5 {[%clk 0:01:30.9]} 23... Qb3 {[%clk
0:01:24.9]} 24. Rb1 {[%clk 0:01:25.7]} 24... Qxa3 {[%clk 0:01:23.8]} 25. Rxb7
{[%clk 0:01:25.4]} 25... Nf8 {[%clk 0:01:23.6]} 26. h3 {[%clk 0:01:17.5]} 26...
Rc2 {[%clk 0:01:22.7]} 27. Qd1 {[%clk 0:01:14.8]} 27... Qxa5 {[%clk 0:01:16.7]}
28. Rf1 {[%clk 0:00:55]} 28... Qa6 {[%clk 0:01:13.2]} 29. Rb8 {[%clk 0:00:46.2]}
29... Rxb8 {[%clk 0:00:42.4]} 30. Qxc2 {[%clk 0:00:45.2]} 30... h6 {[%clk
0:00:42.3]} 31. Rc1 {[%clk 0:00:40.3]} 31... Ng6 {[%clk 0:00:40.6]} 32. Be3
{[%clk 0:00:35.5]} 32... Kh7 {[%clk 0:00:39.3]} 33. Nf4 {[%clk 0:00:33.7]} 33...
Nxf4 {[%clk 0:00:37]} 34. Bxf4 {[%clk 0:00:32.4]} 34... Qa2 {[%clk 0:00:34.3]}
35. Qxa2 {[%clk 0:00:28.8]} 35... g5 {[%clk 0:00:29.6]} 36. Be3 {[%clk
0:00:28.1]} 36... Kg6 {[%clk 0:00:25.4]} 37. Qc2 {[%clk 0:00:25.1]} 37... Kg7
{[%clk 0:00:21.3]} 38. Rb1 {[%clk 0:00:21.5]} 38... Ra8 {[%clk 0:00:19.8]} 39.
Rb7 {[%clk 0:00:20]} 39... Ra1+ {[%clk 0:00:15.6]} 40. Kh2 {[%clk 0:00:20]}
40... Rf1 {[%clk 0:00:13.5]} 41. Qc7 {[%clk 0:00:19.8]} 41... Nxe3 {[%clk
0:00:13.5]} 42. Qxf7+ {[%clk 0:00:19.3]} 42... Kh8 {[%clk 0:00:10.6]} 43. Qh7#
{[%clk 0:00:19.8]} 1-0

[Event "*** Titled Tuesday Blitz"]
[Site "Chess.com"]
[Date "2020.12.01"]
[Round "11"]
[White "Brave_spirit12"]
[Black "Leo_C"]
[Result "1-0"]
[WhiteElo "2489"]
[BlackElo "2374"]
[TimeControl "180+1"]
[EndTime "12:05:47 PST"]
[Termination "Brave_spirit12 won by resignation"]

1. e4 {[%clk 0:03:00.5]} 1... c6 {[%clk 0:02:54.8]} 2. Nc3 {[%clk 0:02:57.7]}
2... d5 {[%clk 0:02:55.1]} 3. Nf3 {[%clk 0:02:58.6]} 3... Bg4 {[%clk 0:02:54.9]}
4. h3 {[%clk 0:02:57.9]} 4... Bh5 {[%clk 0:02:55.2]} 5. exd5 {[%clk 0:02:55.5]}
5... cxd5 {[%clk 0:02:54.5]} 6. Bb5+ {[%clk 0:02:55.2]} 6... Nc6 {[%clk
0:02:54.2]} 7. g4 {[%clk 0:02:54.5]} 7... Bg6 {[%clk 0:02:54.1]} 8. Ne5 {[%clk
0:02:34.6]} 8... Rc8 {[%clk 0:02:49.9]} 9. d4 {[%clk 0:02:31.6]} 9... e6 {[%clk
0:02:49.4]} 10. Qe2 {[%clk 0:02:26.1]} 10... Bd6 {[%clk 0:02:44]} 11. h4 {[%clk
0:02:13.8]} 11... a6 {[%clk 0:02:35.7]} 12. Bxc6+ {[%clk 0:02:11.7]} 12... bxc6
{[%clk 0:02:35.5]} 13. h5 {[%clk 0:02:12.2]} 13... Be4 {[%clk 0:02:11.9]} 14. f3
{[%clk 0:02:10.4]} 14... Bxe5 {[%clk 0:01:56.1]} 15. dxe5 {[%clk 0:02:06.5]}
15... f5 {[%clk 0:01:32.4]} 16. fxe4 {[%clk 0:02:04]} 16... fxe4 {[%clk
0:01:31.7]} 17. O-O {[%clk 0:02:02.6]} 17... Qh4 {[%clk 0:01:27.8]} 18. Bf4
{[%clk 0:01:49.8]} 18... Nh6 {[%clk 0:01:27.2]} 19. Bxh6 {[%clk 0:01:48.3]}
19... gxh6 {[%clk 0:01:28.1]} 20. Qg2 {[%clk 0:01:41.6]} 20... Rg8 {[%clk
0:01:17.5]} 21. Rf4 {[%clk 0:01:40.3]} 21... Rc7 {[%clk 0:01:17.3]} 22. Nd1
{[%clk 0:01:09.1]} 22... Rcg7 {[%clk 0:01:12.6]} 23. Ne3 {[%clk 0:00:59.5]}
23... d4 {[%clk 0:01:10]} 24. Qxe4 {[%clk 0:00:58.6]} 24... dxe3 {[%clk
0:01:04.9]} 25. Qxc6+ {[%clk 0:00:58]} 25... Ke7 {[%clk 0:00:38]} 26. Qd6+
{[%clk 0:00:56.8]} 26... Ke8 {[%clk 0:00:37.5]} 27. Qxe6+ {[%clk 0:00:56.2]}
27... Qe7 {[%clk 0:00:35.9]} 28. Qc8+ {[%clk 0:00:51.3]} 28... Qd8 {[%clk
0:00:35.7]} 29. Qc6+ {[%clk 0:00:49.8]} 29... Ke7 {[%clk 0:00:35.1]} 30. Raf1
{[%clk 0:00:38.2]} 30... e2 {[%clk 0:00:22.9]} 31. Qf6+ {[%clk 0:00:29.4]} 31...
Ke8 {[%clk 0:00:20.3]} 32. Qe6+ {[%clk 0:00:29.1]} 32... Qe7 {[%clk 0:00:19.1]}
33. Qc8+ {[%clk 0:00:28.8]} 33... Qd8 {[%clk 0:00:19]} 34. Rf8+ {[%clk
0:00:27.4]} 34... Rxf8 {[%clk 0:00:18.4]} 35. Rxf8+ {[%clk 0:00:28.3]} 35...
Kxf8 {[%clk 0:00:18.2]} 36. Qxd8+ {[%clk 0:00:28.7]} 36... Kf7 {[%clk
0:00:18.4]} 37. Qf6+ {[%clk 0:00:28.5]} 37... Ke8 {[%clk 0:00:17.4]} 38. Kf2
{[%clk 0:00:26.6]} 38... Rf7 {[%clk 0:00:16.8]} 39. Qxf7+ {[%clk 0:00:26.9]}
39... Kxf7 {[%clk 0:00:16.9]} 40. Kxe2 {[%clk 0:00:27.8]} 40... Ke6 {[%clk
0:00:17.7]} 41. Kd3 {[%clk 0:00:28.7]} 41... Kxe5 {[%clk 0:00:18.1]} 42. Kc4
{[%clk 0:00:29.6]} 42... Kf4 {[%clk 0:00:18.4]} 43. Kd5 {[%clk 0:00:27]} 43...
Kxg4 {[%clk 0:00:18.8]} 44. c4 {[%clk 0:00:27.9]} 44... Kxh5 {[%clk 0:00:19.2]}
45. c5 {[%clk 0:00:28.8]} 45... Kg5 {[%clk 0:00:19.2]} 46. c6 {[%clk 0:00:29]}
46... h5 {[%clk 0:00:18.6]} 47. c7 {[%clk 0:00:29.5]} 47... h4 {[%clk
0:00:19.2]} 48. c8=Q {[%clk 0:00:30.4]} 48... h3 {[%clk 0:00:19.6]} 49. Qxa6
{[%clk 0:00:30.9]} 1-0